Workbook

Sheet Assumptions
B2: Vincent Court Proforma
B5: Income - Monthly | J5: Expenses - Annual
B6: Unit | C6: BD/BA | D6: Rennovated | E6: Rent | F6: Water | G6: Parking/Pet Fee | H6: Taxes | J6: Turnover Maintenence (per unit) - R | K6: 1000
B7: Commercial Unit 1 | D7: yes | E7: 1310 | F7: 35 | J7: Turnover Maintenence (per unit) - C | K7: 5000
B8: Commercial Unit 2 | D8: yes | E8: 1648 | F8: 30 | J8: Common Area Cleaning | K8: 1700
B9: 1D | C9: 2024-02-01 | D9: yes | E9: 1280 | F9: 60 | J9: Snow Removal | K9: 1500
B10: 2A | C10: 2024-01-01 | D10: yes | E10: 1200 | F10: 45 | G10: 25 | J10: Trash Removal | K10: 10000
B11: 2B | C11: 2024-01-01 | D11: yes | E11: 1070 | F11: 60 | J11: Property Insurance | K11: 13082
B12: 2C | C12: 2024-02-02 | D12: yes | E12: 1260 | F12: 60 | G12: 75 | J12: Property Tax | K12: =16811.6+1000 -> 17811.6
B13: 2E | C13: 0/1 | D13: no | E13: 825 | F13: 60 | G13: 25 | J13: Common Area Electricity | K13: 3482.71
B14: 2F | C14: 2024-01-01 | D14: partially | E14: 1195 | F14: 60 | J14: Internet | K14: 1300
B15: 3A | C15: 2024-01-01 | D15: yes | E15: 1125 | F15: 60 | G15: 75 | J15: Water | K15: 8060.28
B16: 3B | C16: 2024-01-01 | D16: yes | E16: 1030 | F16: 60 | J16: Gas | K16: 2000
B17: 3D | C17: 2024-02-02 | D17: partially | E17: 1260 | F17: 60 | G17: 75 | J17: Repairs and Maintenance | K17: 12000
B18: 3E | C18: 0/1 | D18: yes | E18: 915 | F18: 60 | J18: Inspections/Licenses/Permits | K18: 3000
B19: 3F | C19: 2024-01-01 | D19: partially | E19: 1000 | F19: 30 | G19: 75 | J19: Accounting/Tax Prep | K19: 1100
B20: Garage #1 | C20: - | E20: 125 | J20: Pest/Bug Control | K20: 500
B21: Garage #2 | C21: - | E21: 125 | J21: Management Fees | K21: =0.06*ProForma!D11 -> 11942.3766
B22: Garage #3 | C22: - | E22: 125
B23: Garage #4 | C23: - | E23: 125 | J23: Assumptions
B24: Garage #5 | C24: - | E24: 125 | J24: Annual Rent Rise | K24: 0.03
B25: Garage #6 | C25: - | E25: 125 | J25: Inflation | K25: 0.02
B26: Garage #7 | C26: - | E26: 125 | J26: Vacancy Rate | K26: =K27*1/6 -> 0.06060606061
B27: Garage #8 | C27: - | E27: 125 | J27: Turnover (Residential) | K27: =4/COUNT(E9:E19) -> 0.3636363636
B28: Garage #9 | C28: - | E28: 125 | J28: Turnover (Commercial) | K28: 0
B29: Garage #10 | C29: - | E29: 125 | J29: Cap Rate at Sale | K29: 0.06
B30: Garage #11 | C30: - | E30: 125 | J30: Closing Costs | K30: 0
B31: Garage #12 | C31: - | E31: 125
B32: Garage #13 | C32: - | E32: 125
B33: Garage #14 | C33: - | E33: 125
B34: Garage #15 | C34: - | E34: 125
B35: Garage #16 | C35: - | E35: 125
B36: Garage #17 | C36: - | E36: 125
B37: Garage #18 | C37: - | E37: 125
B38: Garage #19 | C38: - | E38: 125
B39: Laundry | C39: - | E39: =500/12 -> 41.66666667

Sheet ProForma
D2: 2025 | E2: =D2+1 -> 2026 | F2: =E2+1 -> 2027 | G2: 2028 | H2: 2029
B3: Operating Revenue
B4: Gross Commercial Rental Income | D4: 30788 | E4: =SUM(Assumptions!E7:E8)*12 -> 35496 | F4: =E4*(1+Assumptions!$K$24) -> 36560.88 | G4: =F4*(1+Assumptions!$K$24) -> 37657.7064 | H4: =G4*(1+Assumptions!$K$24) -> 38787.43759
B5: Gross Residential Rental Income | D5: 130907.61 | E5: =SUM(Assumptions!E9:E19)*12 -> 145920 | F5: =E5*(1+Assumptions!$K$24) -> 150297.6 | G5: =F5*(1+Assumptions!$K$24) -> 154806.528 | H5: =G5*(1+Assumptions!$K$24) -> 159450.7238
B6: Gross Garage Income | D6: 25391.41 | E6: =SUM(Assumptions!E20:E38)*12 -> 28500 | F6: =E6*(1+Assumptions!$K$24) -> 29355 | G6: =F6*(1+Assumptions!$K$24) -> 30235.65 | H6: =G6*(1+Assumptions!$K$24) -> 31142.7195
B7: Gross Parking Income | D7: 4800 | E7: =SUM(Assumptions!G7:G19)*12 -> 4200 | F7: =E7*(1+Assumptions!$K$24) -> 4326 | G7: =F7*(1+Assumptions!$K$24) -> 4455.78 | H7: =G7*(1+Assumptions!$K$24) -> 4589.4534
B8: Gross Water Income | D8: 6652.59 | E8: =SUM(Assumptions!F7:F19)*12 -> 8160 | F8: =E8*(1+Assumptions!$K$24) -> 8404.8 | G8: =F8*(1+Assumptions!$K$24) -> 8656.944 | H8: =G8*(1+Assumptions!$K$24) -> 8916.65232
B9: Gross Laundry Income | D9: 500 | E9: =Assumptions!$E$39*12 -> 500 | F9: =E9*(1+Assumptions!$K$24) -> 515 | G9: =F9*(1+Assumptions!$K$24) -> 530.45 | H9: =Assumptions!$E$39*12 -> 500
B10: Vacancy Loss | E10: =-Assumptions!$K$27*ProForma!E5*2/12 -> -8843.636364 | F10: =-Assumptions!$K$27*ProForma!F5*2/12 -> -9108.945455 | G10: =-Assumptions!$K$27*ProForma!G5*2/12 -> -9382.213818 | H10: =-Assumptions!$K$27*ProForma!H5*2/12 -> -9663.680233
B11: Net Operating Revenue | D11: =SUM(D4:D10) -> 199039.61 | E11: =SUM(E4:E10) -> 213932.3636 | F11: =SUM(F4:F10) -> 220350.3345 | G11: 226960.8446 | H11: 233723.3064
B13: Operating Expenses
B14: Turnover Maintenance | D14: =-Assumptions!K6*COUNT(Assumptions!E9:E19)*Assumptions!K27+Assumptions!K7*COUNT(Assumptions!E7:E8)*Assumptions!K28 -> -4000 | E14: =D14*(1+Assumptions!$K$25) -> -4080 | F14: =E14*(1+Assumptions!$K$25) -> -4161.6 | G14: =F14*(1+Assumptions!$K$25) -> -4244.832 | H14: =G14*(1+Assumptions!$K$25) -> -4329.72864
B15: Common Area Cleaning | D15: =-Assumptions!K8 -> -1700 | E15: =D15*(1+Assumptions!$K$25) -> -1734 | F15: =E15*(1+Assumptions!$K$25) -> -1768.68 | G15: =F15*(1+Assumptions!$K$25) -> -1804.0536 | H15: =G15*(1+Assumptions!$K$25) -> -1840.134672
B16: Snow Removal | D16: =-Assumptions!K9 -> -1500 | E16: =D16*(1+Assumptions!$K$25) -> -1530 | F16: =E16*(1+Assumptions!$K$25) -> -1560.6 | G16: =F16*(1+Assumptions!$K$25) -> -1591.812 | H16: =G16*(1+Assumptions!$K$25) -> -1623.64824
B17: Trash Removal | D17: =-Assumptions!K10 -> -10000 | E17: =D17*(1+Assumptions!$K$25) -> -10200 | F17: =E17*(1+Assumptions!$K$25) -> -10404 | G17: =F17*(1+Assumptions!$K$25) -> -10612.08 | H17: =G17*(1+Assumptions!$K$25) -> -10824.3216
B18: Property Insurance | D18: =-Assumptions!K11 -> -13082 | E18: =D18*(1+Assumptions!$K$25) -> -13343.64 | F18: =E18*(1+Assumptions!$K$25) -> -13610.5128 | G18: =F18*(1+Assumptions!$K$25) -> -13882.72306 | H18: =G18*(1+Assumptions!$K$25) -> -14160.37752
B19: Property Tax | D19: =-Assumptions!K12 -> -17811.6 | E19: =D19*(1+Assumptions!$K$25) -> -18167.832 | F19: =E19*(1+Assumptions!$K$25) -> -18531.18864 | G19: =F19*(1+Assumptions!$K$25) -> -18901.81241 | H19: =G19*(1+Assumptions!$K$25) -> -19279.84866
B20: Common Area Electricity | D20: =-Assumptions!K13 -> -3482.71 | E20: =D20*(1+Assumptions!$K$25) -> -3552.3642 | F20: =E20*(1+Assumptions!$K$25) -> -3623.411484 | G20: =F20*(1+Assumptions!$K$25) -> -3695.879714 | H20: =G20*(1+Assumptions!$K$25) -> -3769.797308
B21: Internet | D21: =-Assumptions!K14 -> -1300 | E21: =D21*(1+Assumptions!$K$25) -> -1326 | F21: =E21*(1+Assumptions!$K$25) -> -1352.52 | G21: =F21*(1+Assumptions!$K$25) -> -1379.5704 | H21: =G21*(1+Assumptions!$K$25) -> -1407.161808
B22: Water | D22: =-Assumptions!K15 -> -8060.28 | E22: =D22*(1+Assumptions!$K$25) -> -8221.4856 | F22: =E22*(1+Assumptions!$K$25) -> -8385.915312 | G22: =F22*(1+Assumptions!$K$25) -> -8553.633618 | H22: =G22*(1+Assumptions!$K$25) -> -8724.706291
B23: Gas (PGW) | D23: =-Assumptions!K16 -> -2000 | E23: =D23*(1+Assumptions!$K$25) -> -2040 | F23: =E23*(1+Assumptions!$K$25) -> -2080.8 | G23: =F23*(1+Assumptions!$K$25) -> -2122.416 | H23: =G23*(1+Assumptions!$K$25) -> -2164.86432
B24: Repairs and Maintenance | D24: =-Assumptions!K17 -> -12000 | E24: =D24*(1+Assumptions!$K$25) -> -12240 | F24: =E24*(1+Assumptions!$K$25) -> -12484.8 | G24: =F24*(1+Assumptions!$K$25) -> -12734.496 | H24: =G24*(1+Assumptions!$K$25) -> -12989.18592
B25: Inspections/Licenses/Permits | D25: =-Assumptions!K18 -> -3000 | E25: =D25*(1+Assumptions!$K$25) -> -3060 | F25: =E25*(1+Assumptions!$K$25) -> -3121.2 | G25: =F25*(1+Assumptions!$K$25) -> -3183.624 | H25: =G25*(1+Assumptions!$K$25) -> -3247.29648
B26: Accounting/Tax Prep | D26: =-Assumptions!K19 -> -1100 | E26: =D26*(1+Assumptions!$K$25) -> -1122 | F26: =E26*(1+Assumptions!$K$25) -> -1144.44 | G26: =F26*(1+Assumptions!$K$25) -> -1167.3288 | H26: =G26*(1+Assumptions!$K$25) -> -1190.675376
B27: Pest/Bug Control (per unit) | D27: =-Assumptions!K20 -> -500 | E27: =D27*(1+Assumptions!$K$25) -> -510 | F27: =E27*(1+Assumptions!$K$25) -> -520.2 | G27: =F27*(1+Assumptions!$K$25) -> -530.604 | H27: =G27*(1+Assumptions!$K$25) -> -541.21608
B28: Total Operating Expenses | D28: =SUM(D14:D27) -> -79536.59 | E28: =SUM(E14:E27) -> -81127.3218 | F28: =SUM(F14:F27) -> -82749.86824 | G28: =SUM(G14:G27) -> -84404.8656 | H28: =SUM(H14:H27) -> -86092.96291
B30: Management Fees | D30: =-Assumptions!K21 -> -11942.3766 | E30: =D30*(1+Assumptions!$K$25) -> -12181.22413 | F30: =E30*(1+Assumptions!$K$25) -> -12424.84861 | G30: =F30*(1+Assumptions!$K$25) -> -12673.34559 | H30: =G30*(1+Assumptions!$K$25) -> -12926.8125
B31: Total Operating Expenses (with management) | D31: =SUM(D28:D30) -> -91478.9666 | E31: =SUM(E28:E30) -> -93308.54593 | F31: =SUM(F28:F30) -> -95174.71685 | G31: =SUM(G28:G30) -> -97078.21119 | H31: =SUM(H28:H30) -> -99019.77541
B33: Gross NOI | D33: =D11+D28 -> 119503.02 | E33: =E11+E28 -> 132805.0418 | F33: =F11+F28 -> 137600.4663 | G33: =G11+G28 -> 142555.979 | H33: =H11+H28 -> 147630.3435
B34: % of Revenue | D34: =D33/D11 -> 0.6003981821 | E34: =E33/E11 -> 0.6207805102 | F34: =F33/F11 -> 0.6244622528 | G34: =G33/G11 -> 0.6281082503 | H34: =H33/H11 -> 0.6316457942
B35: Net NOI (management fees) | D35: =D11+D31 -> 107560.6434 | E35: =E11+E31 -> 120623.8177 | F35: =F11+F31 -> 125175.6177 | G35: =G11+G31 -> 129882.6334 | H35: =H11+H31 -> 134703.531
B36: % of Revenue | D36: =D35/D11 -> 0.5403981821 | E36: =E35/E11 -> 0.5638409059 | F36: =F35/F11 -> 0.5680754602 | G36: =G35/G11 -> 0.5722689023 | H36: =H35/H11 -> 0.5763376065
B38: Cap Rate - Sales Price
B39: 0.0525 | D39: =D$35/$B39 -> 2048774.16 | E39: =E$35/$B39 -> 2297596.528 | F39: 2384297.48 | G39: 2473954.922 | H39: 2565781.543
B40: 0.055 | D40: =D$35/$B40 -> 1955648.062 | E40: 2193160.322 | F40: 2275920.322 | G40: 2361502.425 | H40: 2449155.109
B41: 0.0575 | D41: 1870619.885 | E41: =E$35/$B41 -> 2097805.525 | F41: 2176967.264 | G41: 2258828.407 | H41: 2342670.104
B42: 0.06 | D42: =D$35/$B42 -> 1792677.39 | E42: 2010396.962 | F42: 2086260.295 | G42: 2164710.557 | H42: 2245058.85
B43: 0.0625 | D43: 1720970.294 | E43: 1929981.083 | F43: 2002809.883 | G43: 2078122.134 | H43: 2155256.496
B44: 0.065 | D44: 1654779.129 | E44: 1855751.042 | F44: 1925778.734 | G44: 1998194.36 | H44: 2072362.016
B45: 0.0675 | D45: 1593491.013 | E45: 1787019.522 | F45: 1854453.595 | G45: 1924187.161 | H45: 1995607.867
B46: 0.07 | D46: =D$35/$B46 -> 1536580.62 | E46: 1723197.396 | F46: 1788223.11 | G46: 1855466.191 | H46: 1924336.157
